fUSD/lending_fUSD_20240617
["ID","MTS","AMOUNT","RATE_DAILY","PERIOD"]
[329731530,1718627435658,-5.33692813,0.00026888,2]
[329731531,1718627435676,-294.61446051,0.00026904,2]
[329731532,1718627435693,-276.26225629,0.00026905,2]
[329731533,1718627435705,-188.78420404,0.00026969,2]
[329731534,1718627435719,-152.6839455,0.00026992,2]
[329731535,1718627435776,-4268.63425419,0.00027,2]
[329731536,1718627435792,-840.52331929,0.00027,2]
[329731537,1718627435818,-478.1956183,0.00027,2]
[329731538,1718627435835,-530.14499983,0.00027,2]
[329731539,1718627435858,-2285.28828624,0.00027,2]
[329731548,1718627436085,-3921.29546248,0.00027,2]
[329731583,1718627440898,-71.0014778,0.00027,2]
[329731584,1718627440926,-393.19965,0.00027,2]
[329731774,1718627448399,-1000.1804684,0.00027,2]
[329731796,1718627449181,-369.56846571,0.00026,2]
[329731797,1718627449207,-47257.86156313,0.00027,2]
[329731827,1718627451183,-532.17,0.00027,2]
[329731854,1718628034507,165.38811749,0.000275,120]
[329731856,1718628213574,291.73,0.00023641,30]
[329731891,1718628633772,-259.99573651,0.00012597,2]
[329731892,1718628633787,-155.0,0.00012598,2]
[329731893,1718628633823,-897.15426349,0.00012599,2]
[329731894,1718628634716,-544.4915,0.00012599,2]
[329731895,1718628634731,-792.90653945,0.00012599,2]
[329731896,1718628634743,-3795.59346055,0.000126,2]
[329731897,1718628634761,-828.73162517,0.000126,2]
[329731898,1718628634775,-211.74726363,0.0001399,2]
[329731899,1718628634800,-3740.54379256,0.00014,2]
[329731918,1718628640760,-553.7066831,0.00014,2]
[329731919,1718628640780,-1906.27756987,0.00014,2]
[329731920,1718628642156,-1998.78696,0.00014,2]
[329731921,1718628642200,-1131.37846202,0.00014,2]
[329731922,1718628642215,-320.72800787,0.00014,2]
[329731957,1718628644995,-574.51942524,0.00014,2]
[329731958,1718628645012,-352.51999998,0.00014,2]
[329731959,1718628645027,-3315.2,0.00014,2]
[329731960,1718628645225,-1554.59197684,0.00014,2]
[329731961,1718628646351,-3386.69072913,0.00014,2]
[329731962,1718628646374,-98383.53296432,0.00014,2]
[329731973,1718628647043,-701.78153052,0.00014,2]
[329731974,1718628647056,-1779.675,0.00014,2]
[329731975,1718628647070,-665.84359141,0.00014,2]
[329731976,1718628647090,-1452.0841496,0.00014,2]
[329731977,1718628647108,-102235.50931475,0.00014,2]
[329731978,1718628647128,-27704.4171582,0.00014,2]
[329731979,1718628647146,-1954.10039998,0.00014,2]
[329731980,1718628647173,-10777.89184876,0.00014,2]
[329731981,1718628647189,-67011.52271762,0.00014,2]
[329731982,1718628647204,-2205.44129155,0.00014,2]
[329731989,1718628647696,-1706.48451016,0.00014,2]
[329731990,1718628647723,-10970.52681283,0.00014,2]
[329731991,1718628647736,-10167.78888365,0.00014,2]
[329731992,1718628647760,-416.89208468,0.00014,2]
[329731993,1718628647805,-11766.4632743,0.00014,2]
[329731994,1718628648485,-2728.0163992,0.00014,2]
[329731995,1718628648498,-41961.50295327,0.00014,2]
[329731996,1718628648512,-4832.5,0.00014,2]
[329731997,1718628649061,-719.55397394,0.00014,2]
[329731998,1718628649084,-278.8119108,0.00014,2]
[329731999,1718628649132,-332307.02379101,0.00014,2]
[329732000,1718628649149,-327.53502879,0.000149,2]
[329732001,1718628649162,-26000.0,0.00015,2]
[329732002,1718628649191,-150.99,0.0001726,2]
[329732003,1718628649205,-364.87756042,0.0002,2]
[329732004,1718628649217,-384.23,0.00021045,2]
[329732005,1718628649238,-250.0,0.00021582,2]
[329732006,1718628649254,-156.18,0.00021744,2]
[329732007,1718628649265,-367.27,0.00021823,2]
[329732008,1718628649276,-173.61,0.00021918,2]
[329732009,1718628649288,-200.0,0.00023,2]
[329732010,1718628649299,-512.71,0.00023179,2]
[329732011,1718628649311,-487.26,0.00023184,2]
[329732012,1718628649330,-250.0,0.00023237,2]
[329732013,1718628649342,-1206.37179984,0.00023457,2]
[329732014,1718628649406,-500.0,0.00023599,2]
[329732015,1718628649432,-186.76879754,0.00023599,2]
[329732016,1718628649448,-388.70006111,0.00023599,2]
[329732017,1718628649475,-500.0,0.00023599,2]
[329732018,1718628649498,-218.31912123,0.00023599,2]
[329732019,1718628649513,-500.0,0.00023599,2]
[329732020,1718628649525,-313.46215415,0.00023599,2]
[329732021,1718628649542,-500.0,0.00023599,2]
[329732022,1718628649553,-71760.253772,0.000236,2]
[329732023,1718628649962,-12004.12581564,0.000236,2]
[329732024,1718628649977,-34666.25918774,0.000236,2]
[329732025,1718628650010,-500.0,0.000236,2]
[329732026,1718628650023,-289.59,0.00023613,2]
[329732027,1718628650038,-155.0,0.00023641,2]
[329732028,1718628650062,-1280.15,0.00023658,2]
[329732029,1718628650102,-676.16,0.00023785,2]
[329732030,1718628650114,-662.86587057,0.0002381,2]
[329732031,1718628650152,-909.08,0.00023816,2]
[329732032,1718628650168,-250.0,0.00023864,2]
[329732033,1718628650180,-1528.47,0.00023865,2]
[329732034,1718628650193,-204.92,0.00023866,2]
[329732035,1718628650204,-367.27,0.00024087,2]
[329732036,1718628650214,-156.04,0.00024384,2]
[329732037,1718628650225,-199.4353472,0.00024799,2]
[329732038,1718628650239,-369.56846571,0.00026,2]
[329732039,1718628650269,-4270.12188367,0.00026,2]
[329732040,1718628650283,-152.98,0.00026,2]
[329732042,1718628650295,-367.27,0.00026351,2]
[329732043,1718628650306,-189.25697445,0.00026487,2]
[329732045,1718628650318,-5836.00385425,0.00026493,2]
[329732047,1718628650340,-513.10562617,0.00026506,2]
[329732049,1718628650370,-158.33692472,0.00026514,2]
[329732051,1718628650388,-166.66666666,0.00026555,2]
[329732054,1718628650422,-1863.0137684,0.00026561,2]
[329732056,1718628650443,-360.76,0.00026575,2]
[329732057,1718628650459,-5836.00385425,0.00026594,2]
[329732059,1718628650470,-1250.0,0.000266,2]
[329732061,1718628650484,-1000.0,0.000266,2]
[329732063,1718628650516,-248.63603066,0.00026622,2]
[329732065,1718628650536,-158.33692472,0.00026666,2]
[329732067,1718628650577,-463.79126137,0.00026688,2]
[329732068,1718628650588,-169.90578363,0.000267,2]
[329732069,1718628650600,-559.37041839,0.00026704,2]
[329732070,1718628650611,-278.50045221,0.00026715,2]
[329732071,1718628650623,-559.37041839,0.00026748,2]
[329732072,1718628650646,-343.55035976,0.00026752,2]
[329732073,1718628650656,-676.16,0.00026758,2]
[329732074,1718628650667,-343.55035976,0.00026759,2]
[329732075,1718628650678,-162.46674874,0.00026764,2]
[329732076,1718628650700,-157.26335747,0.00026782,2]
[329732077,1718628650712,-169.90578363,0.00026789,2]
[329732078,1718628650730,-278.50045221,0.00026792,2]
[329732079,1718628650744,-172.37211541,0.00026798,2]
[329732080,1718628650759,-158.41567961,0.00026818,2]
[329732081,1718628650770,-343.55035976,0.00026822,2]
[329732082,1718628650783,-343.55035976,0.00026831,2]
[329732083,1718628650793,-513.10562617,0.0002684,2]
[329732084,1718628650805,-189.25697445,0.00026855,2]
[329732085,1718628650816,-154.31165084,0.0002687,2]
[329732086,1718628650849,-152.98,0.0002687,2]
[329732087,1718628650865,-188810.35874351,0.0002688,2]
[329732088,1718628650882,-188.51633103,0.0002688,2]
[329732089,1718628650899,-4451.57970802,0.0002688,2]
[329732090,1718628650911,-645.74397258,0.000269,2]
[329732091,1718628650931,-294.61446051,0.000269,2]
[329732092,1718628650962,-645.74397248,0.00026927,2]
[329732093,1718628650981,-5836.00385425,0.00026954,2]
[329732094,1718628650993,-645.74397248,0.00026955,2]
[329732095,1718628651003,-152.6839455,0.00026981,2]
[329732096,1718628651032,-645.74397248,0.00026982,2]
[329732097,1718628651064,-154.31165084,0.00026987,2]
[329732098,1718628651077,-513.10562617,0.00026999,2]
[329732099,1718628651092,-1514.86,0.00026999,7]
[329732100,1718628651107,-1514.86,0.00026999,7]
[329732101,1718628651119,-1514.86,0.00026999,7]
[329732102,1718628651134,-1514.86,0.00026999,7]
[329732103,1718628651152,-1514.86,0.00026999,7]
[329732104,1718628651168,-1514.86,0.00026999,7]
[329732105,1718628651179,-1514.86,0.00026999,7]
[329732106,1718628651191,-1514.86,0.00026999,7]
[329732107,1718628651202,-1514.86,0.00026999,7]
[329732108,1718628651217,-1514.86,0.00026999,7]
[329732109,1718628651228,-1514.86,0.00026999,7]
[329732110,1718628651243,-1514.86,0.00026999,7]
[329732111,1718628651257,-1514.86,0.00026999,7]
[329732112,1718628651267,-1514.86,0.00026999,7]
[329732113,1718628651278,-1514.86,0.00026999,7]
[329732114,1718628651290,-1514.86,0.00026999,7]
[329732115,1718628651303,-1514.86,0.00026999,7]
[329732116,1718628651314,-1514.86,0.00026999,7]
[329732117,1718628651331,-1514.86,0.00026999,7]
[329732118,1718628651345,-1514.86,0.00026999,7]
[329732119,1718628651363,-1514.86,0.00026999,7]
[329732120,1718628651406,-1514.86,0.00026999,7]
[329732121,1718628651428,-1514.86,0.00026999,7]
[329732122,1718628651441,-1514.93,0.00026999,7]
[329732123,1718628651457,-19131.74010618,0.00027,2]
[329732124,1718628651468,-10000.0,0.00027,30]
[329732125,1718628651480,-8118.28884265,0.00027,30]
[329732126,1718628651501,-41457.49394467,0.00027,2]
[329732127,1718628651513,-1418.98444,0.00027,2]
[329732128,1718628651524,-155.36001067,0.00027009,2]
[329732129,1718628651543,-645.74397248,0.00027009,2]
[329732130,1718628651556,-10113.56,0.0002701,2]
[329732131,1718628651582,-589.7686555,0.00027017,4]
[329732132,1718628651593,-278.50045221,0.00027031,2]
[329732133,1718628651606,-645.74397248,0.00027036,2]
[329732134,1718628651644,-150.0,0.00027037,2]
[329732135,1718628651684,-248.63603066,0.00027047,2]
[329732136,1718628651695,-166.66666666,0.00027047,2]
[329732137,1718628651707,-152.07277979,0.00027054,2]
[329732138,1718628651736,-150.0,0.0002706,2]
[329732139,1718628651759,-645.74397248,0.00027064,2]
[329732140,1718628651770,-317.46971312,0.00027065,2]
[329732141,1718628651781,-500.0,0.00027082,2]
[329732142,1718628651804,-200.0,0.00027082,2]
[329732143,1718628651816,-513.10562617,0.00027085,2]
[329732144,1718628651849,-645.74397248,0.00027091,2]
[329732145,1718628651863,-572.0,0.00027097,2]
[329732146,1718628651895,-1500.0,0.00027105,2]
[329732147,1718628651924,-645.74397248,0.00027118,2]
[329732148,1718628651941,-1863.0137684,0.00027121,2]
[329732149,1718628651958,-5836.00385425,0.00027142,2]
[329732150,1718628651969,-645.74397248,0.00027145,2]
[329732151,1718628651979,-301.24273878,0.00027172,2]
[329732152,1718628651991,-645.74397248,0.00027173,2]
[329732153,1718628652009,-154.31165084,0.00027175,2]
[329732154,1718628652037,-278.50045221,0.00027191,2]
[329732155,1718628652061,-463.79126137,0.00027198,2]
[329732156,1718628652071,-157.55586534,0.000272,2]
[329732157,1718628652082,-10000.0,0.000272,2]
[329732158,1718628652096,-645.74397248,0.000272,2]
[329732159,1718628652106,-395.53727413,0.000272,5]
[329732160,1718628652129,-408.16375642,0.000272,2]
[329732161,1718628652150,-10899.70387098,0.000272,2]
[329732162,1718628652165,-150.0,0.0002721,2]
[329732163,1718628652180,-150.0,0.00027219,2]
[329732164,1718628652199,-150.0,0.00027226,2]
[329732165,1718628652210,-906.89039836,0.00027226,2]
[329732166,1718628652220,-154.20081626,0.00027229,2]
[329732167,1718628652244,-906.89039836,0.00027237,2]
[329732168,1718628652255,-157.55586533,0.00027249,2]
[329732169,1718628652277,-150.0,0.00027249,2]
[329732170,1718628652288,-300.0,0.00027253,2]
[329732171,1718628652299,-1500.0,0.00027259,2]
[329732172,1718628652309,-1500.0,0.00027265,2]
[329732173,1718628652320,-906.89039836,0.00027275,2]
[329732174,1718628652331,-150.0,0.00027276,2]
[329732175,1718628652346,-300.0,0.00027285,2]
[329732176,1718628652357,-152.98,0.00027288,2]
[329732177,1718628652369,-152.98,0.0002729,2]
[329732178,1718628652381,-276.13931217,0.0002729,2]
[329732179,1718628652592,-564.27400258,0.0002729,2]
[329732180,1718628652617,-771.18960035,0.0002729,2]
[329732181,1718628652631,-211.74726363,0.0002729,2]
[329732182,1718628652645,-152.98,0.0002729,2]
[329732183,1718628652669,-152.98,0.0002729,2]
[329732184,1718628652683,-152.98,0.0002729,2]
[329732185,1718628652698,-152.98,0.0002729,2]
[329732186,1718628652740,-152.98,0.0002729,2]
[329732187,1718628652757,-152.98,0.0002729,2]
[329732188,1718628652779,-152.98,0.0002729,2]
[329732189,1718628652793,-152.98,0.0002729,2]
[329732190,1718628652805,-152.98,0.0002729,2]
[329732191,1718628652816,-152.98,0.0002729,2]
[329732192,1718628652846,-152.98,0.0002729,2]
[329732193,1718628652862,-152.98,0.0002729,2]
[329732194,1718628652880,-152.98,0.0002729,2]
[329732195,1718628652896,-152.98,0.0002729,2]
[329732196,1718628652908,-152.98,0.0002729,2]
[329732197,1718628652922,-152.98,0.0002729,2]
[329732198,1718628652948,-152.98,0.0002729,2]
[329732199,1718628652959,-152.98,0.0002729,2]
[329732200,1718628652974,-152.98,0.0002729,2]
[329732201,1718628653006,-152.98,0.0002729,2]
[329732202,1718628653024,-152.98,0.0002729,2]
[329732203,1718628653043,-152.98,0.0002729,2]
[329732204,1718628653056,-4000.97993616,0.00027296,2]
[329732205,1718628653099,-1372.88197144,0.00027296,2]
[329732206,1718628653121,-2235.3331722,0.00027296,2]
[329732207,1718628653132,-4807.2580163,0.00027296,2]
[329732208,1718628653155,-157.55586533,0.00027297,2]
[329732209,1718628653167,-189.35260982,0.00027298,2]
[329732210,1718628653182,-6810.49961373,0.00027298,2]
[329732211,1718628653193,-3534.70977482,0.00027298,2]
[329732212,1718628653220,-620.32940833,0.00027298,2]
[329732213,1718628653233,-462.21378197,0.00027298,2]
[329732214,1718628653264,-893.14362162,0.00027298,2]
[329732215,1718628653288,-205.04112632,0.00027298,2]
[329732216,1718628653300,-989.92032676,0.00027298,2]
[329732217,1718628653310,-415.33875263,0.00027298,2]
[329732218,1718628653320,-346.80614684,0.00027298,2]
[329732219,1718628653333,-374.82929581,0.00027298,2]
[329732220,1718628653345,-1174.82948289,0.00027298,2]
[329732221,1718628653356,-21211.35777747,0.00027298,2]
[329732269,1718628912678,-335.75556882,0.00012599,2]
[329732270,1718628912711,-1048.13149264,0.00014,2]
[329732280,1718629711503,-155.0,0.00017241,2]
[329732281,1718629711549,-300.0,0.000182,2]
[329732282,1718629711593,-673.0,0.000183,2]
[329732283,1718629711621,-2342.0,0.000183,2]
[329732284,1718629711653,-2725.73,0.00019726,2]
[329732285,1718629711699,-1000.0,0.00020124,2]
[329732286,1718629711733,-499.99,0.00020124,2]
[329732287,1718629711784,-1250.0,0.00021,2]
[329732301,1718629741590,300.0,0.00019725,2]
[329732305,1718629754429,259.99573651,0.00017259,2]
[329732308,1718629802727,155.0,0.00021,2]
[329732309,1718629824853,155.0,0.0002,2]
[329732317,1718629834188,-3111.40281369,0.00022804,2]
[329732318,1718629834206,-1316.81818631,0.00022804,2]
[329732319,1718629834273,-1192.0,0.00022804,2]
[329732320,1718629834315,-150.0,0.00023174,2]
[329732321,1718629834404,-199.707,0.00023174,2]
[329732322,1718629834435,-372.18505281,0.00023201,2]
[329732323,1718629834471,-353.77,0.00023254,2]
[329732324,1718629834485,-5000.0,0.00024,2]
[329732325,1718629834496,-150.0,0.00024166,2]
[329732326,1718629834511,-1533.58764158,0.00025,2]
[329732327,1718629834528,-834.1091607,0.00025,2]
[329732328,1718629834540,-2000.0,0.00025,2]
[329732329,1718629834551,-931.71971366,0.00025,2]
[329732330,1718629834562,-405.69,0.00025079,2]
[329732331,1718629834573,-1500.0,0.00025102,5]
[329732332,1718629834585,-250.0,0.00025106,2]
[329732333,1718629834598,-250.0,0.00025163,2]
[329732334,1718629834628,-173.61,0.00025212,2]
[329732335,1718629834640,-1782.39,0.00025212,2]
[329732336,1718629834662,-267.41,0.00025318,30]
[329732337,1718629834678,-170.76,0.00025516,2]
[329732338,1718629834713,-353.77,0.00025518,2]
[329732339,1718629834732,-250.0,0.00025595,2]
[329732340,1718629834746,-155.0,0.00025999,2]
[329732341,1718629834758,-369.56846571,0.00026,2]
[329732342,1718629834796,-1025.44736262,0.00026,2]
[329732343,1718629834809,-200.0,0.00026,9]
[329732344,1718629834821,-500.0,0.000261,9]
[329732345,1718629834856,-150.0,0.00026174,2]
[329732346,1718629834898,-800.0,0.000262,9]
[329732347,1718629834911,-2002.01309142,0.000263,2]
[329732348,1718629834924,-1100.0,0.000263,9]
[329732349,1718629834965,-1400.0,0.000264,9]
[329732350,1718629834980,-408.01387982,0.00026417,2]
[329732351,1718629835007,-470.94466821,0.00026422,2]
[329732352,1718629835095,-158.41567961,0.00026428,2]
[329732353,1718629835107,-307.0346371,0.0002645,2]
[329732354,1718629835144,-152.6839455,0.00026458,2]
[329732355,1718629835158,-374.50869997,0.00026465,2]
[329732356,1718629835179,-9972.62,0.0002649,2]
[329732357,1718629835213,-155.7507652,0.00026492,2]
[329732358,1718629835253,-200.0,0.000265,9]
[329732359,1718629835300,-152.6839455,0.00026518,2]
[329732360,1718629835328,-152.37970437,0.00026534,2]
[329732361,1718629835373,-418.01,0.00026548,2]
[329732362,1718629835403,-418.01,0.00026548,2]
[329732363,1718629835415,-418.01,0.00026548,2]
[329732364,1718629835444,-418.01,0.00026548,2]
[329732365,1718629835467,-403.91,0.00026548,2]
[329732366,1718629835480,-374.50869997,0.00026582,2]
[329732367,1718629835508,-180.37139182,0.00026588,2]
[329732368,1718629835525,-200.0,0.000266,9]
[329732369,1718629835551,-470.94466821,0.00026614,2]
[329732370,1718629835584,-274.56218087,0.00026619,2]
[329732371,1718629835600,-903.5133904,0.00026622,2]
[329732372,1718629835618,-2025.43035335,0.00026626,2]
[329732373,1718629835636,-167.30008279,0.00026683,2]
[329732374,1718629835660,-527.15,0.00026685,2]
[329732375,1718629835672,-151.73,0.00026685,2]
[329732376,1718629835683,-423.27,0.00026685,2]
[329732378,1718629835695,-152.56,0.00026685,2]
[329732380,1718629835713,-353.95,0.00026685,2]
[329732382,1718629835741,-150.0,0.00026685,2]
[329732384,1718629835777,-150.0,0.00026685,2]
[329732386,1718629835817,-164.44,0.00026685,2]
[329732387,1718629835829,-150.0,0.00026685,2]
[329732388,1718629835850,-300.0,0.00026685,2]
[329732389,1718629835916,-423.27,0.00026685,2]
[329732390,1718629835946,-353.95,0.00026685,2]
[329732391,1718629835958,-150.0,0.00026685,2]
[329732392,1718629835984,-150.0,0.00026685,2]
[329732393,1718629836009,-527.15,0.00026685,2]
[329732394,1718629836023,-164.44,0.00026685,2]
[329732395,1718629836034,-150.0,0.00026685,2]
[329732396,1718629836047,-150.0,0.00026685,2]
[329732397,1718629836057,-150.0,0.00026685,2]
[329732398,1718629836066,-163.96,0.00026685,2]
[329732399,1718629836076,-527.15,0.00026685,2]
[329732400,1718629836095,-150.0,0.00026685,2]
[329732401,1718629836111,-150.0,0.00026685,2]
[329732402,1718629836125,-352.93,0.00026685,2]
[329732403,1718629836139,-150.0,0.00026685,2]
[329732404,1718629836160,-422.04,0.00026685,2]
[329732405,1718629836172,-199.8,0.00026685,2]
[329732406,1718629836191,-200.0,0.000267,9]
[329732407,1718629836202,-274.56218087,0.00026703,2]
[329732408,1718629836243,-166.66666667,0.00026715,2]
[329732409,1718629836261,-2025.43035335,0.00026718,2]
[329732410,1718629836281,-2025.43035335,0.00026731,2]
[329732411,1718629836292,-152.07277979,0.00026738,2]
[329732412,1718629836307,-155.0,0.00026752,2]
[329732413,1718629836321,-5294.0088913,0.00026769,2]
[329732414,1718629836346,-408.01387982,0.00026775,2]
[329732415,1718629836359,-200.0,0.000268,9]
[329732416,1718629836388,-527.28553447,0.00026803,2]
[329732417,1718629836418,-527.28553447,0.00026809,2]
[329732418,1718629836441,-408.01387982,0.00026837,2]
[329732419,1718629836451,-470.94466821,0.00026838,2]
[329732420,1718629836462,-1133.0,0.000269,9]
[329732421,1718629836480,-294.61446051,0.00026928,2]
[329732422,1718629836495,-152.37970437,0.00026929,2]
[329732423,1718629836508,-374.50869997,0.0002694,2]
[329732424,1718629836526,-152.07277979,0.00026957,2]
[329732425,1718629836552,-150.0,0.00026968,2]
[329732426,1718629836583,-2000.0,0.00027,3]
[329732427,1718629836604,-527.28553447,0.00027023,2]
[329732428,1718629836614,-588.39087731,0.00027025,4]
[329732429,1718629836648,-158.57873139,0.00027031,2]
[329732430,1718629836661,-150.0,0.00027058,2]
[329732431,1718629836708,-150.0,0.00027066,2]
[329732432,1718629836754,-500.0,0.0002708,2]
[329732433,1718629836769,-500.0,0.00027081,2]
[329732434,1718629836795,-500.0,0.00027081,2]
[329732435,1718629836821,-200.0,0.00027081,2]
[329732436,1718629836846,-200.0,0.00027081,2]
[329732437,1718629836895,-158.57873139,0.000271,2]
[329732438,1718629836926,-1265.83337706,0.00027121,2]
[329732439,1718629836941,-1500.0,0.00027138,2]
[329732440,1718629836957,-527.28553447,0.00027144,2]
[329732441,1718629836968,-374.50869997,0.00027148,2]
[329732442,1718629836997,-302.23252059,0.00027154,2]
[329732443,1718629837017,-159.99071251,0.00027172,2]
[329732444,1718629837059,-160.0,0.00027174,2]
[329732445,1718629837113,-160.0,0.00027182,2]
[329732446,1718629837137,-160.0,0.00027191,2]
[329732447,1718629837148,-7500.0,0.00027199,2]
[329732448,1718629837160,-57290.8705,0.000272,2]
[329732449,1718629837172,-186042.64264163,0.000272,2]
[329732450,1718629837193,-58957.35735837,0.000272,2]
[329732451,1718629837206,-151.86679459,0.000272,2]
[329732452,1718629837219,-10000.0,0.000272,2]
[329732453,1718629837230,-25604.11736906,0.000272,2]
[329732454,1718629837253,-160.0,0.000272,2]
[329732455,1718629837266,-291.0,0.000272,2]
[329732456,1718629837277,-150.0,0.000272,6]
[329732457,1718629837288,-2014.98329277,0.000272,2]
[329732458,1718629837318,-2141.9571818,0.000272,2]
[329732459,1718629837338,-155.7507652,0.00027201,2]
[329732460,1718629837361,-408.01387982,0.00027203,2]
[329732461,1718629837383,-1500.0,0.00027207,2]
[329732462,1718629837394,-5294.0088913,0.00027232,2]
[329732463,1718629837417,-1500.0,0.00027269,2]
[329732464,1718629837444,-152.0,0.0002729,3]
[329732465,1718629837456,-619.0,0.00027292,2]
[329732466,1718629837480,-3082.1610019,0.00027293,2]
[329732467,1718629837519,-2493.3835023,0.00027293,2]
[329732468,1718629837545,-903.5133904,0.00027293,2]
[329732469,1718629837557,-151.412491,0.00027296,2]
[329732470,1718629837568,-2659.1227067,0.00027296,2]
[329732471,1718629837605,-209.23301289,0.00027297,2]
[329732472,1718629837621,-5903.55757461,0.00027297,2]
[329732473,1718629837634,-151.86679459,0.00027297,2]
[329732474,1718629837662,-784.2794531,0.00027298,2]
[329732475,1718629837688,-211.2435469,0.00027298,2]
[329732476,1718629837721,-299.29433227,0.00027298,2]
[329732477,1718629837733,-366.07943095,0.00027298,10]
[329732478,1718629837757,-707.49477052,0.00027298,2]
[329732479,1718629837772,-1278.71461203,0.00027298,2]
[329732480,1718629837785,-1223.33270374,0.00027298,2]
[329732481,1718629837808,-156.51872761,0.00027298,2]
[329732482,1718629837828,-500.8517388,0.00027298,2]
[329732483,1718629837849,-239.23230944,0.00027298,2]
[329732484,1718629837860,-227.5,0.00027298,2]
[329732485,1718629837879,-2000.0,0.00027298,2]
[329732486,1718629837891,-200.0,0.00027298,2]
[329732487,1718629837922,-1182.48703,0.00027298,2]
[329732488,1718629837933,-1144.0565368,0.00027298,2]
[329732489,1718629837955,-200.0,0.00027298,2]
[329732490,1718629837967,-500.0,0.00027298,8]
[329732491,1718629838007,-2698.58885497,0.00027299,2]
[329732492,1718629838021,-162.78790019,0.00027299,2]
[329732493,1718629838034,-193.13287259,0.00027299,2]
[329732494,1718629838061,-76920.35113713,0.00027299,2]
[329732495,1718629838075,-261.62382088,0.00027299,2]
[329732496,1718629838094,-629.99914214,0.00027299,2]
[329732497,1718629838258,-1213.93749004,0.00027299,2]
[329732498,1718629838281,-334.61,0.00027299,2]
[329732499,1718629838297,-300.0,0.00027299,2]
[329732500,1718629838328,-4667.47387818,0.00027299,2]
[329732501,1718629838364,-3743.49128444,0.00027299,2]
[329732524,1718629840791,-259.99573651,0.00025998,2]
[329732526,1718629840818,-4210.91311261,0.00027299,2]
[329732528,1718629840833,-710.733,0.00027299,2]
[329732530,1718629840857,-5641.70032621,0.00027299,2]
[329732531,1718629840878,-4069.7644186,0.00027299,2]
[329732532,1718629841308,-10287.06687749,0.00027299,2]
[329732533,1718629841321,-3218.69297135,0.00027299,2]
[329732534,1718629841338,-250.39418971,0.00027299,2]
[329732535,1718629841413,-412.39990406,0.00027299,2]
[329732536,1718629841444,-1275.15327242,0.00027299,2]
[329732537,1718629841464,-183996.82451764,0.00027299,2]
[329732538,1718629841489,-1500.0,0.00027299,7]
[329732539,1718629841500,-1500.0,0.00027299,7]
[329732540,1718629841513,-1500.0,0.00027299,7]
[329732541,1718629841536,-1500.0,0.00027299,7]
[329732542,1718629841556,-1500.0,0.00027299,7]
[329732543,1718629841569,-1500.0,0.00027299,7]
[329732544,1718629841592,-1500.0,0.00027299,7]
[329732545,1718629841616,-1500.0,0.00027299,7]
[329732546,1718629841627,-470.94466821,0.00027299,2]
[329732547,1718629841657,-307.85105196,0.00027299,2]
[329732548,1718629841670,-544.03864624,0.00027299,2]
[329732549,1718629841683,-3561.35279801,0.000273,2]
[329732550,1718629841694,-65668.32922547,0.000273,5]
[329732551,1718629841709,-218469.07732433,0.000273,5]
[329732552,1718629841756,-536.93965553,0.000273,5]
[329732553,1718629841790,-11353.05974957,0.000273,5]
[329732554,1718629841817,-6311.63345652,0.000273,5]
[329732555,1718629841839,-6697.84166771,0.000273,5]
[329732627,1718629843522,155.0,0.0002,2]
[329732670,1718629844860,-209.23301289,0.00027298,2]
[329732672,1718629844914,-173.0896744,0.000273,5]
[329732674,1718629844927,-460.56973873,0.000273,13]
[329732811,1718629847007,-5903.55757461,0.00027298,2]
[329732813,1718629847034,-5000.0,0.00027299,7]
[329732815,1718629847068,-136635.64205357,0.000273,13]
[329732817,1718629847083,-303.78677249,0.000273,13]